[Event "Kuwait Championship Stage-I 2024"]
[Site "Qadsiya"]
[Date "2024.01.27"]
[Round "5.4"]
[White "AlShourfaa, Hazaa"]
[Black "Alruwayeh, Talal"]
[Result "0-1"]
[ECO "B11"]
[WhiteElo "1701"]
[BlackElo "1407"]
[Annotator "NA RC COMBH"]
[PlyCount "184"]
[EventDate "2024.01.22"]
[EventType "swiss"]
[EventCountry "KUW"]
[SourceTitle "playchess.com"]
[Source "ChessBase"]
[SourceQuality "1"]
[TimeControl "5400+30"]

1. e4 {[%emt 0:00:05]} c6 {[%emt 0:00:34]} 2. Nc3 {[%emt 0:00:08]} d6 {[%emt 0:00:48]} 3. f4 {[%emt 0:00:34]} e6 {[%emt 0:03:40]} 4. Nf3 {[%emt 0:00:44]} Be7 {[%emt 0:00:36]} 5. d4 {[%emt 0:00:37]} Nd7 {[%emt 0:00:40]} 6. Bd3 {[%emt 0:01:06]} a6 {[%emt 0:02:01]} 7. O-O {[%emt 0:00:41]} c5 {[%emt 0:01:31]} 8. Be3 {[%emt 0:08:11]} cxd4 {[%emt 0:02:08]} 9. Bxd4 {[%emt 0:00:06]} e5 {[%emt 0:06:14]} 10. fxe5 {[%emt 0:04:56]} dxe5 {[%emt 0:00:23]} 11. Nxe5 {[%emt 0:01:57]} Nxe5 {[%emt 0:03:48]} 12. Bxe5 {[%emt 0:00:44]} Nf6 {[%emt 0:01:04]} 13. Nd5 {[%emt 0:08:26]} Nxd5 {[%emt 0:03:28]} 14. exd5 {[%emt 0:02:55]} Qxd5 {[%emt 0:02:20]} 15. Qe2 {[%emt 0:02:46]} Be6 {[%emt 0:06:42]} 16. b3 {[%emt 0:04:20]} Rc8 {[%emt 0:04:21]} 17. Rad1 {[%emt 0:01:32]} Qa5 {[%emt 0:01:50]} 18. a4 {[%emt 0:02:07]} Qb4 {[%emt 0:09:42]} 19. Bb2 {[%emt 0:09:29]} Bg4 {[%emt 0:02:25]} 20. Qe4 {[%emt 0:34:48]} Qxe4 {[%emt 0:02:10]} 21. Bxe4 {[%emt 0:00:02]} Bxd1 {[%emt 0:00:28]} 22. Rxd1 {[%emt 0:00:16]} O-O {[%emt 0:01:35]} 23. Kf1 {[%emt 0:01:01]} Rfd8 {[%emt 0:02:02]} 24. Bd3 {[%emt 0:00:06]} g6 {[%emt 0:01:07]} 25. Rd2 {[%emt 0:00:23]} Bf8 {[%emt 0:00:20]} 26. Rf2 {[%emt 0:01:50]} Bg7 {[%emt 0:00:26]} 27. Ba3 {[%emt 0:00:12]} Rd7 {[%emt 0:04:31]} 28. g3 {[%emt 0:00:52]} Re8 {[%emt 0:00:46]} 29. Bb4 {[%emt 0:00:46]} Bf8 {[%emt 0:03:49]} 30. Bd2 {[%emt 0:00:27]} Bc5 {[%emt 0:01:15]} 31. Rf3 {[%emt 0:00:21]} Rde7 {[%emt 0:00:58]} 32. Bc4 {[%emt 0:04:23]} Rd7 {[%emt 0:03:02]} 33. Bd3 {[%emt 0:00:50]} Kg7 {[%emt 0:01:25]} 34. Bc3+ {[%emt 0:00:54]} Kg8 {[%emt 0:00:47]} 35. Bd2 {[%emt 0:00:01]} Bd4 {[%emt 0:00:29]} 36. Kg2 {[%emt 0:00:38]} Bg7 {[%emt 0:00:50]} 37. Kf2 {[%emt 0:00:05]} h5 {[%emt 0:00:15]} 38. Bb4 {[%emt 0:01:00]} Kh7 {[%emt 0:00:14]} 39. h3 {[%emt 0:01:01]} f5 {[%emt 0:00:12]} 40. h4 {[%emt 0:04:14]} Bd4+ {[%emt 0:01:12]} 41. Kg2 {[%emt 0:00:31]} Re3 {[%emt 0:01:59]} 42. Rxe3 {[%emt 0:03:33]} Bxe3 {[%emt 0:01:33]} 43. Kf3 {[%emt 0:00:01]} Bd4 {[%emt 0:00:29]} 44. Bd2 {[%emt 0:00:01]} Be5 {[%emt 0:00:47]} 45. Be3 {[%emt 0:00:06]} Kg7 {[%emt 0:01:25]} 46. Bd2 {[%emt 0:00:15]} Rf7 {[%emt 0:00:50]} 47. Bc4 {[%emt 0:00:16]} Rf6 {[%emt 0:00:22]} 48. Bg5 {[%emt 0:00:19]} Rd6 {[%emt 0:00:25]} 49. Bd3 {[%emt 0:00:10]} Rd4 {[%emt 0:01:15]} 50. Be3 {[%emt 0:00:47]} Rg4 {[%emt 0:00:18]} 51. Bf2 {[%emt 0:00:07]} f4 {[%emt 0:00:37]} 52. gxf4 {[%emt 0:00:32]} Rxf4+ {[%emt 0:00:21]} 53. Ke3 {[%emt 0:00:13]} Rf6 {[%emt 0:01:39]} 54. Be1 {[%emt 0:00:35]} Rd6 {[%emt 0:02:03]} 55. Bb4 {[%emt 0:00:41]} Rd7 {[%emt 0:00:46]} 56. Kf3 {[%emt 0:01:19]} Bf6 {[%emt 0:00:08]} 57. Be1 {[%emt 0:00:05]} Rd4 {[%emt 0:00:28]} 58. Be4 {[%emt 0:00:09]} Rd1 {[%emt 0:01:44]} 59. Ke2 {[%emt 0:00:13]} Rd7 {[%emt 0:00:22]} 60. Kf3 {[%emt 0:00:23]} Rf7 {[%emt 0:00:56]} 61. Bd5 {[%emt 0:00:51]} Rf8 {[%emt 0:00:07]} 62. Kg2 {[%emt 0:03:05]} Rc8 {[%emt 0:04:49]} 63. Bc4 {[%emt 0:00:07]} b5 {[%emt 0:00:40]} 64. axb5 {[%emt 0:00:01]} axb5 {[%emt 0:00:02]} 65. Bd3 {[%emt 0:00:01]} Bc3 {[%emt 0:02:00]} 66. Bf2 {[%emt 0:00:18]} b4 {[%emt 0:00:09]} 67. Kg3 {[%emt 0:00:19]} Rf8 {[%emt 0:00:19]} 68. Be3 {[%emt 0:00:21]} Be1+ {[%emt 0:00:22]} 69. Kg2 {[%emt 0:00:30]} Bxh4 {[%emt 0:00:33]} 70. Bc5 {[%emt 0:00:16]} Rb8 {[%emt 0:00:27]} 71. Kh3 {[%emt 0:00:24]} Bf6 {[%emt 0:00:18]} 72. Bd6 {[%emt 0:00:05]} Rb6 {[%emt 0:02:21]} 73. Bc5 {[%emt 0:00:03]} Rb7 {[%emt 0:00:12]} 74. Bc4 {[%emt 0:00:26]} Bc3 {[%emt 0:00:12]} 75. Bd3 {[%emt 0:00:18]} Rf7 {[%emt 0:00:26]} 76. Bg1 {[%emt 0:00:41]} g5 {[%emt 0:01:18]} 77. Be2 {[%emt 0:00:16]} Kh6 {[%emt 0:00:21]} 78. Bc5 {[%emt 0:00:15]} Rf5 {[%emt 0:00:33]} 79. Bb6 {[%emt 0:00:24]} g4+ {[%emt 0:00:40]} 80. Kg2 {[%emt 0:00:07]} Re5 {[%emt 0:00:26]} 81. Bd3 {[%emt 0:00:17]} Re6 {[%emt 0:00:35]} 82. Bc5 {[%emt 0:00:05]} Kg5 {[%emt 0:00:33]} 83. Bc4 {[%emt 0:00:12]} Re8 {[%emt 0:01:16]} 84. Bf2 {[%emt 0:01:11]} h4 {[%emt 0:00:35]} 85. Bd3 {[%emt 0:00:18]} h3+ {[%emt 0:00:37]} 86. Kh2 {[%emt 0:00:21]} Be5+ {[%emt 0:00:12]} 87. Kg1 {[%emt 0:00:02]} g3 {[%emt 0:13:22]} 88. Bc5 {[%emt 0:07:26]} Bf4 {[%emt 0:00:00]} 89. Kf1 {[%emt 0:00:00]} Bd2 {[%emt 0:00:00]} 90. Be2 {[%emt 0:00:00]} Kh4 {[%emt 0:00:00]} 91. Bd4 {[%emt 0:00:00]} h2 {[%emt 0:00:00]} 92. Bf6+ {[%emt 0:02:00]} Kh3 0-1

[Event "Kuwait Championship Stage-I 2024"]
[Site "Qadsiya"]
[Date "2024.01.27"]
[Round "5.5"]
[White "Hussain, Hashem"]
[Black "Almohammad, Hamad"]
[Result "1-0"]
[ECO "B13"]
[WhiteElo "1642"]
[BlackElo "1296"]
[Annotator "NA RC COMBH"]
[PlyCount "111"]
[EventDate "2024.01.22"]
[EventType "swiss"]
[EventCountry "KUW"]
[SourceTitle "playchess.com"]
[Source "ChessBase"]
[SourceQuality "1"]
[TimeControl "5400+30"]

1. e4 {[%emt 0:00:12]} c6 {[%emt 0:00:37]} 2. d4 {[%emt 0:00:09]} d5 {[%emt 0:00:06]} 3. exd5 {[%emt 0:00:17]} cxd5 {[%emt 0:00:14]} 4. Bd3 {[%emt 0:00:08]} Nf6 {[%emt 0:00:17]} 5. c3 {[%emt 0:00:42]} g6 {[%emt 0:00:21]} 6. Ne2 {[%emt 0:00:53]} Bg4 {[%emt 0:00:36]} 7. O-O {[%emt 0:01:28]} Bg7 {[%emt 0:00:19]} 8. h3 {[%emt 0:00:56]} Bxe2 {[%emt 0:00:20]} 9. Qxe2 {[%emt 0:01:53]} O-O {[%emt 0:00:29]} 10. Nd2 {[%emt 0:03:54]} Nc6 {[%emt 0:02:24]} 11. f4 {[%emt 0:01:24]} a6 {[%emt 0:03:47]} 12. f5 {[%emt 0:01:56]} Qd6 {[%emt 0:07:35]} 13. fxg6 {[%emt 0:04:31]} fxg6 {[%emt 0:01:27]} 14. Nf3 {[%emt 0:09:36]} Nh5 {[%emt 0:01:35]} 15. Re1 {[%emt 0:08:57]} Nf4 {[%emt 0:09:20]} 16. Bxf4 {[%emt 0:02:49]} Rxf4 {[%emt 0:01:27]} 17. Qe6+ {[%emt 0:02:52]} Qxe6 {[%emt 0:01:11]} 18. Rxe6 {[%emt 0:00:12]} Raf8 {[%emt 0:01:23]} 19. Rae1 {[%emt 0:01:29]} R8f6 {[%emt 0:16:32]} 20. R6e2 {[%emt 0:01:27]} h6 {[%emt 0:04:39]} 21. Nd2 {[%emt 0:04:50]} a5 {[%emt 0:02:29]} 22. g3 {[%emt 0:00:50]} Rf3 {[%emt 0:02:18]} 23. Nxf3 {[%emt 0:00:49]} Rxf3 {[%emt 0:00:17]} 24. Re3 {[%emt 0:06:22]} Rxe3 {[%emt 0:01:31]} 25. Rxe3 {[%emt 0:00:17]} Kf7 {[%emt 0:00:34]} 26. Rf3+ {[%emt 0:02:35]} Bf6 {[%emt 0:00:04]} 27. Bb5 {[%emt 0:02:28]} Kg7 {[%emt 0:02:12]} 28. Bxc6 {[%emt 0:01:06]} bxc6 {[%emt 0:00:05]} 29. Kf1 {[%emt 0:00:30]} Kf7 {[%emt 0:02:28]} 30. Ke2 {[%emt 0:01:52]} Ke6 {[%emt 0:00:13]} 31. Kd3 {[%emt 0:00:41]} Kd6 {[%emt 0:00:18]} 32. b4 {[%emt 0:04:13]} a4 {[%emt 0:05:46]} 33. Kc2 {[%emt 0:01:18]} Kc7 {[%emt 0:00:25]} 34. Re3 {[%emt 0:02:27]} Bg5 {[%emt 0:01:48]} 35. Re6 {[%emt 0:00:41]} Bf6 {[%emt 0:00:09]} 36. Kd3 {[%emt 0:01:56]} Kd7 {[%emt 0:00:48]} 37. Re2 {[%emt 0:00:30]} Kd6 {[%emt 0:00:47]} 38. c4 {[%emt 0:02:14]} Kc7 {[%emt 0:02:01]} 39. cxd5 {[%emt 0:00:55]} cxd5 {[%emt 0:00:04]} 40. Re6 {[%emt 0:00:21]} Kb7 {[%emt 0:09:00]} 41. b5 {[%emt 0:00:23]} h5 {[%emt 0:00:17]} 42. Ra6 {[%emt 0:01:28]} g5 {[%emt 0:00:20]} 43. g4 {[%emt 0:01:34]} hxg4 {[%emt 0:00:47]} 44. hxg4 {[%emt 0:00:10]} a3 {[%emt 0:00:30]} 45. Rxa3 {[%emt 0:00:27]} Kb6 {[%emt 0:00:12]} 46. Rb3 {[%emt 0:00:21]} e5 {[%emt 0:00:19]} 47. dxe5 {[%emt 0:00:56]} Bxe5 {[%emt 0:00:03]} 48. Rb1 {[%emt 0:01:06]} Bf6 {[%emt 0:00:31]} 49. a4 {[%emt 0:00:44]} Be5 {[%emt 0:00:26]} 50. Re1 {[%emt 0:00:44]} Bf4 {[%emt 0:00:42]} 51. Kd4 {[%emt 0:00:41]} Ka5 {[%emt 0:00:50]} 52. Kxd5 {[%emt 0:01:14]} Kxa4 {[%emt 0:00:20]} 53. Kc6 {[%emt 0:00:17]} Kb4 {[%emt 0:01:48]} 54. b6 {[%emt 0:00:25]} Kc4 {[%emt 0:00:04]} 55. b7 {[%emt 0:01:04]} Kd4 {[%emt 0:00:36]} 56. Re8 {[%emt 0:00:24]} 1-0

[Event "Kuwait Championship Stage-I 2024"]
[Site "Qadsiya"]
[Date "2024.01.27"]
[Round "5.6"]
[White "Alruwaiyeh, Musa"]
[Black "Alrefae, Ahmad"]
[Result "0-1"]
[ECO "B55"]
[WhiteElo "1505"]
[BlackElo "1338"]
[Annotator "NA RC COMBH"]
[PlyCount "54"]
[EventDate "2024.01.22"]
[EventType "swiss"]
[EventCountry "KUW"]
[SourceTitle "playchess.com"]
[Source "ChessBase"]
[SourceQuality "1"]
[TimeControl "5400+30"]

1. e4 {[%emt 0:00:02]} c5 {[%emt 0:08:02]} 2. Nf3 {[%emt 0:00:22]} d6 {[%emt 0:00:03]} 3. d4 {[%emt 0:00:35]} cxd4 {[%emt 0:00:05]} 4. Nxd4 {[%emt 0:00:28]} Nf6 {[%emt 0:00:05]} 5. Bc4 {[%emt 0:00:28]} Nxe4 {[%emt 0:01:18]} 6. Qh5 {[%emt 0:02:05]} e6 {[%emt 0:03:00]} 7. Bb5+ {[%emt 0:04:24]} Nd7 {[%emt 0:05:27]} 8. Nxe6 {[%emt 0:02:27]} Qe7 {[%emt 0:00:46]} 9. Nc7+ {[%emt 0:09:12]} Kd8 {[%emt 0:00:07]} 10. Nxa8 {[%emt 0:00:09]} Ng3+ {[%emt 0:00:13]} 11. Qe2 {[%emt 0:01:21]} Nxe2 {[%emt 0:00:46]} 12. Bxe2 {[%emt 0:00:03]} b6 {[%emt 0:01:03]} 13. Nxb6 {[%emt 0:05:46]} Nxb6 {[%emt 0:00:32]} 14. Be3 {[%emt 0:00:31]} Nd5 {[%emt 0:03:54]} 15. Kd2 {[%emt 0:05:19]} Nxe3 {[%emt 0:01:00]} 16. fxe3 {[%emt 0:00:03]} g6 {[%emt 0:02:53]} 17. Nc3 {[%emt 0:05:27]} Bh6 {[%emt 0:03:32]} 18. Nd5 {[%emt 0:03:58]} Qe5 {[%emt 0:00:13]} 19. Bf3 {[%emt 0:00:03]} Bb7 {[%emt 0:00:21]} 20. c4 {[%emt 0:01:32]} Bxd5 {[%emt 0:00:07]} 21. Bxd5 {[%emt 0:00:06]} Qxe3+ {[%emt 0:00:41]} 22. Kc2 {[%emt 0:00:17]} Qd2+ {[%emt 0:00:14]} 23. Kb3 {[%emt 0:00:34]} Kc7 {[%emt 0:01:06]} 24. Ka4 {[%emt 0:02:06]} Rb8 {[%emt 0:01:33]} 25. a3 {[%emt 0:00:28]} Qc2+ {[%emt 0:00:28]} 26. Ka5 {[%emt 0:00:15]} Qxb2 {[%emt 0:01:02]} 27. Rab1 {[%emt 0:01:58]} Qxa3# {[%emt 0:00:23]} 0-1

[Event "Kuwait Championship Stage-I 2024"]
[Site "Qadsiya"]
[Date "2024.01.27"]
[Round "5.8"]
[White "Al Subaie, Nasser"]
[Black "Alghanim, Faisal"]
[Result "0-1"]
[ECO "B12"]
[WhiteElo "1457"]
[BlackElo "1280"]
[Annotator "NA RC COMBH"]
[PlyCount "127"]
[EventDate "2024.01.22"]
[EventType "swiss"]
[EventCountry "KUW"]
[SourceTitle "playchess.com"]
[Source "ChessBase"]
[SourceQuality "1"]
[TimeControl "5400+30"]

1. e4 {[%emt 0:00:16]} c6 {[%emt 0:04:56]} 2. d4 {[%emt 0:00:06]} d5 {[%emt 0:00:03]} 3. e5 {[%emt 0:00:05]} Bf5 {[%emt 0:00:08]} 4. Nf3 {[%emt 0:01:53]} e6 {[%emt 0:00:07]} 5. Bd3 {[%emt 0:02:41]} Bxd3 {[%emt 0:00:05]} 6. Qxd3 {[%emt 0:00:05]} c5 {[%emt 0:01:10]} 7. dxc5 {[%emt 0:08:14]} Nd7 {[%emt 0:04:56]} 8. O-O {[%emt 0:10:20]} Bxc5 {[%emt 0:06:41]} 9. c3 {[%emt 0:06:59]} Qc7 {[%emt 0:03:44]} 10. Be3 {[%emt 0:04:42]} Bxe3 {[%emt 0:03:32]} 11. Qxe3 {[%emt 0:00:28]} Ne7 {[%emt 0:00:23]} 12. Re1 {[%emt 0:02:47]} Ng6 {[%emt 0:05:51]} 13. Nbd2 {[%emt 0:03:55]} O-O {[%emt 0:06:56]} 14. h4 {[%emt 0:01:44]} Qc5 {[%emt 0:02:52]} 15. Qg5 {[%emt 0:05:17]} f6 {[%emt 0:12:55]} 16. exf6 {[%emt 0:06:09]} Rxf6 {[%emt 0:00:29]} 17. Qe3 {[%emt 0:26:16]} Raf8 {[%emt 0:09:28]} 18. b4 {[%emt 0:04:33]} Qxe3 {[%emt 0:02:27]} 19. fxe3 {[%emt 0:00:10]} Rc8 {[%emt 0:04:47]} 20. Rac1 {[%emt 0:02:38]} Nge5 {[%emt 0:01:19]} 21. Re2 {[%emt 0:04:25]} Nd3 {[%emt 0:01:14]} 22. Rc2 {[%emt 0:00:08]} Nxb4 {[%emt 0:27:27]} 23. Rb2 {[%emt 0:00:08]} Nc6 {[%emt 0:00:00]} 24. Rxb7 {[%emt 0:00:19]} Nb6 {[%emt 0:00:00]} 25. e4 {[%emt 0:00:43]} Rf7 {[%emt 0:00:00]} 26. Rxf7 {[%emt 0:00:33]} Kxf7 {[%emt 0:00:00]} 27. Ng5+ {[%emt 0:00:13]} Kg6 {[%emt 0:00:00]} 28. Nxe6 {[%emt 0:01:15]} dxe4 {[%emt 0:00:00]} 29. Rxe4 {[%emt 0:00:47]} h6 {[%emt 0:00:00]} 30. g4 {[%emt 0:03:41]} Nd5 {[%emt 0:00:00]} 31. Nf4+ {[%emt 0:02:03]} Nxf4 {[%emt 0:00:00]} 32. Rxf4 {[%emt 0:00:02]} Ne5 {[%emt 0:00:00]} 33. c4 {[%emt 0:01:48]} Rd8 {[%emt 0:00:00]} 34. Nf1 {[%emt 0:01:34]} Rd1 {[%emt 0:00:12]} 35. h5+ {[%emt 0:00:22]} Kh7 {[%emt 0:00:33]} 36. Re4 {[%emt 0:00:29]} Nd7 {[%emt 0:02:10]} 37. Kf2 {[%emt 0:00:35]} Ra1 {[%emt 0:01:29]} 38. Re2 {[%emt 0:00:26]} Nc5 {[%emt 0:00:33]} 39. Rd2 {[%emt 0:00:39]} Ne4+ {[%emt 0:00:12]} 40. Ke2 {[%emt 0:00:16]} Nxd2 {[%emt 0:00:07]} 41. Nxd2 {[%emt 0:00:03]} Rxa2 {[%emt 0:00:36]} 42. Kd3 {[%emt 0:00:10]} Kg8 {[%emt 0:01:24]} 43. c5 {[%emt 0:00:00]} Kf8 {[%emt 0:00:14]} 44. Ne4 {[%emt 0:01:11]} Ra4 {[%emt 0:01:18]} 45. Nd6 {[%emt 0:00:58]} Ke7 {[%emt 0:01:21]} 46. Nc4 {[%emt 0:00:52]} Kd7 {[%emt 0:00:56]} 47. Kd4 {[%emt 0:00:06]} Ra1 {[%emt 0:00:33]} 48. Ne5+ {[%emt 0:00:25]} Kc7 {[%emt 0:00:18]} 49. Kd5 {[%emt 0:00:43]} a5 {[%emt 0:00:33]} 50. Ke6 {[%emt 0:00:11]} Re1 {[%emt 0:00:26]} 51. Kf5 {[%emt 0:00:25]} Rxe5+ {[%emt 0:00:48]} 52. Kxe5 {[%emt 0:00:14]} a4 {[%emt 0:00:12]} 53. Ke6 {[%emt 0:01:25]} a3 {[%emt 0:00:09]} 54. Kf7 {[%emt 0:00:03]} a2 {[%emt 0:00:05]} 55. Kxg7 {[%emt 0:00:02]} a1=Q+ {[%emt 0:00:12]} 56. Kxh6 {[%emt 0:00:08]} Qh8+ {[%emt 0:01:00]} 57. Kg6 {[%emt 0:00:42]} Qg8+ {[%emt 0:00:45]} 58. Kf5 {[%emt 0:01:33]} Qh7+ {[%emt 0:00:40]} 59. Kf6 {[%emt 0:00:22]} Qh6+ {[%emt 0:00:27]} 60. Kf5 {[%emt 0:00:09]} Kc6 {[%emt 0:00:19]} 61. g5 {[%emt 0:00:02]} Qxh5 {[%emt 0:00:23]} 62. Kf6 {[%emt 0:00:10]} Qh7 {[%emt 0:00:22]} 63. g6 {[%emt 0:00:10]} Qg8 {[%emt 0:00:09]} 64. g7 {[%emt 0:02:42]} 0-1

[Event "Kuwait Championship Stage-I 2024"]
[Site "Qadsiya"]
[Date "2024.01.27"]
[Round "5.9"]
[White "Husain, Sulaiman A.M."]
[Black "Al-Hajiri, Bader"]
[Result "0-1"]
[ECO "D00"]
[WhiteElo "1636"]
[BlackElo "1890"]
[Annotator "NA RC COMBH"]
[PlyCount "50"]
[EventDate "2024.01.22"]
[EventType "swiss"]
[EventCountry "KUW"]
[SourceTitle "playchess.com"]
[Source "ChessBase"]
[SourceQuality "1"]
[TimeControl "5400+30"]

1. d4 {[%emt 0:00:02]} d5 {[%emt 0:00:20]} 2. e4 {[%emt 0:00:02]} dxe4 {[%emt 0:00:07]} 3. Nc3 {[%emt 0:00:03]} Nf6 {[%emt 0:00:17]} 4. f3 {[%emt 0:00:02]} exf3 {[%emt 0:01:33]} 5. Nxf3 {[%emt 0:00:02]} e6 {[%emt 0:00:47]} 6. Bd3 {[%emt 0:00:03]} Nc6 {[%emt 0:00:32]} 7. Ne4 {[%emt 0:00:20]} Be7 {[%emt 0:00:37]} 8. c3 {[%emt 0:00:07]} O-O {[%emt 0:00:14]} 9. O-O {[%emt 0:00:11]} b6 {[%emt 0:00:45]} 10. Qe1 {[%emt 0:05:45]} Bb7 {[%emt 0:01:17]} 11. Nfg5 {[%emt 0:03:15]} g6 {[%emt 0:06:21]} 12. Nxf6+ {[%emt 0:00:27]} Bxf6 {[%emt 0:00:09]} 13. Nxe6 {[%emt 0:02:21]} fxe6 {[%emt 0:00:18]} 14. Qxe6+ {[%emt 0:00:03]} Kg7 {[%emt 0:01:20]} 15. Qh3 {[%emt 0:05:47]} h5 {[%emt 0:03:38]} 16. Qg3 {[%emt 0:04:34]} Ne7 {[%emt 0:08:37]} 17. Bf4 {[%emt 0:07:04]} h4 {[%emt 0:10:37]} 18. Qe3 {[%emt 0:01:28]} Qd5 {[%emt 0:01:28]} 19. Rf2 {[%emt 0:03:49]} Rfe8 {[%emt 0:08:12]} 20. c4 {[%emt 0:02:39]} Qxd4 {[%emt 0:02:11]} 21. Bh6+ {[%emt 0:00:24]} Kh7 {[%emt 0:00:07]} 22. Rxf6 {[%emt 0:04:00]} Qxf6 {[%emt 0:02:32]} 23. Rf1 {[%emt 0:00:02]} Nf5 {[%emt 0:01:00]} 24. Qf4 {[%emt 0:03:45]} Qc6 {[%emt 0:01:55]} 25. Qg5 {[%emt 0:01:21]} Nxh6 {[%emt 0:00:26]} 0-1

[Event "Kuwait Championship Stage-I 2024"]
[Site "Qadsiya"]
[Date "2024.01.27"]
[Round "5.11"]
[White "Almanaseer, Talal"]
[Black "Alrashidi, Yousef"]
[Result "0-1"]
[ECO "A22"]
[WhiteElo "1249"]
[BlackElo "1512"]
[Annotator "NA RC COMBH"]
[PlyCount "28"]
[EventDate "2024.01.22"]
[EventType "swiss"]
[EventCountry "KUW"]
[SourceTitle "playchess.com"]
[Source "ChessBase"]
[SourceQuality "1"]
[TimeControl "5400+30"]

1. c4 {[%emt 0:00:03]} e5 {[%emt 0:01:09]} 2. Nc3 {[%emt 0:00:52]} Nf6 {[%emt 0:00:11]} 3. g3 {[%emt 0:00:14]} d5 {[%emt 0:00:27]} 4. cxd5 {[%emt 0:00:41]} Nxd5 {[%emt 0:00:05]} 5. Bg2 {[%emt 0:00:27]} Nxc3 {[%emt 0:00:27]} 6. bxc3 {[%emt 0:00:28]} Bd6 {[%emt 0:00:41]} 7. Nf3 {[%emt 0:01:44]} Nc6 {[%emt 0:00:10]} 8. d4 {[%emt 0:05:55]} exd4 {[%emt 0:01:33]} 9. cxd4 {[%emt 0:00:09]} Bf5 {[%emt 0:04:20]} 10. d5 {[%emt 0:04:23]} Bb4+ {[%emt 0:07:18]} 11. Kf1 {[%emt 0:02:58]} Bc3 {[%emt 0:05:12]} 12. Ba3 {[%emt 0:03:04]} Bxa1 {[%emt 0:00:50]} 13. Qxa1 {[%emt 0:00:18]} Qxd5 {[%emt 0:01:15]} 14. Nd4 {[%emt 0:14:43]} Bh3 {[%emt 0:02:27]} 0-1

[Event "Kuwait Championship Stage-I 2024"]
[Site "Qadsiya"]
[Date "2024.01.28"]
[Round "6.1"]
[White "Alsaqer, Meshal"]
[Black "Alhejab, Meshal"]
[Result "0-1"]
[ECO "D03"]
[WhiteElo "1753"]
[BlackElo "1787"]
[Annotator "NA RC"]
[PlyCount "54"]
[EventDate "2024.01.22"]
[EventType "swiss"]
[EventCountry "KUW"]
[SourceTitle "playchess.com"]
[Source "ChessBase"]
[SourceQuality "1"]
[TimeControl "5400+30"]

1. d4 {[%emt 0:00:09]} Nf6 {[%emt 0:04:56]} 2. Nf3 {[%emt 0:01:34]} e6 {[%emt 0:00:41]} 3. Bg5 {[%emt 0:00:48]} d5 {[%emt 0:04:32]} 4. e3 {[%emt 0:01:06]} c5 {[%emt 0:02:48]} 5. Bb5+ {[%emt 0:04:50]} Nbd7 {[%emt 0:03:10]} 6. Nbd2 {[%emt 0:04:04]} Qb6 {[%emt 0:07:29]} 7. a4 {[%emt 0:00:32]} a6 {[%emt 0:02:17]} 8. Bxd7+ {[%emt 0:04:19]} Nxd7 {[%emt 0:04:42]} 9. Qc1 {[%emt 0:04:36]} f6 {[%emt 0:07:51]} 10. Bh4 {[%emt 0:03:09]} cxd4 {[%emt 0:03:36]} 11. Nxd4 {[%emt 0:00:58]} a5 {[%emt 0:07:32]} 12. O-O {[%emt 0:03:30]} e5 {[%emt 0:04:27]} 13. Nb5 {[%emt 0:01:00]} g5 {[%emt 0:09:53]} 14. Bg3 {[%emt 0:01:31]} f5 {[%emt 0:03:41]} 15. f4 {[%emt 0:03:32]} gxf4 {[%emt 0:07:09]} 16. Qd1 {[%emt 0:09:20]} Nf6 {[%emt 0:06:08]} 17. Bh4 {[%emt 0:01:25]} fxe3 {[%emt 0:01:51]} 18. Qe2 {[%emt 0:00:17]} exd2+ {[%emt 0:02:44]} 19. Bf2 {[%emt 0:00:33]} Bc5 {[%emt 0:01:25]} 20. Qxe5+ {[%emt 0:00:28]} Kf7 {[%emt 0:00:22]} 21. Bxc5 {[%emt 0:06:13]} Qxc5+ {[%emt 0:00:08]} 22. Kh1 {[%emt 0:00:07]} Ra6 {[%emt 0:01:37]} 23. Ra3 {[%emt 0:02:15]} Ng4 {[%emt 0:00:53]} 24. Rxf5+ {[%emt 0:02:45]} Bxf5 {[%emt 0:00:25]} 25. Qxf5+ {[%emt 0:00:28]} Rf6 {[%emt 0:01:13]} 26. Qd7+ {[%emt 0:01:29]} Qe7 {[%emt 0:00:33]} 27. Qxd5+ {[%emt 0:00:43]} Kf8 {[%emt 0:00:18]} 0-1

[Event "Kuwait Championship Stage-I 2024"]
[Site "Qadsiya"]
[Date "2024.01.28"]
[Round "6.2"]
[White "Al Ibrahim, Abdulrahman"]
[Black "Alruwayeh, Talal"]
[Result "1-0"]
[ECO "B12"]
[WhiteElo "1854"]
[BlackElo "1407"]
[Annotator "NA RC"]
[PlyCount "99"]
[EventDate "2024.01.22"]
[EventType "swiss"]
[EventCountry "KUW"]
[SourceTitle "playchess.com"]
[Source "ChessBase"]
[SourceQuality "1"]
[TimeControl "5400+30"]

1. e4 {[%emt 0:00:39]} c6 {[%emt 0:00:49]} 2. d4 {[%emt 0:00:08]} d6 {[%emt 0:00:41]} 3. h3 {[%emt 0:00:15]} Nd7 {[%emt 0:00:28]} 4. Nf3 {[%emt 0:00:49]} e6 {[%emt 0:04:24]} 5. Bd3 {[%emt 0:00:39]} Be7 {[%emt 0:01:08]} 6. O-O {[%emt 0:01:29]} a6 {[%emt 0:01:21]} 7. a4 {[%emt 0:01:44]} e5 {[%emt 0:01:28]} 8. c3 {[%emt 0:00:41]} c5 {[%emt 0:00:44]} 9. Nbd2 {[%emt 0:00:43]} cxd4 {[%emt 0:02:38]} 10. cxd4 {[%emt 0:00:20]} exd4 {[%emt 0:00:26]} 11. Nxd4 {[%emt 0:00:10]} Ne5 {[%emt 0:00:39]} 12. Bb1 {[%emt 0:09:47]} Bd7 {[%emt 0:01:02]} 13. Qb3 {[%emt 0:05:51]} Qc8 {[%emt 0:03:07]} 14. Nf5 {[%emt 0:07:14]} Bxf5 {[%emt 0:02:06]} 15. exf5 {[%emt 0:00:05]} Nf6 {[%emt 0:00:28]} 16. Nf3 {[%emt 0:02:47]} O-O {[%emt 0:02:34]} 17. Bf4 {[%emt 0:01:53]} Qc4 {[%emt 0:01:44]} 18. Qxc4 {[%emt 0:05:49]} Nxc4 {[%emt 0:00:45]} 19. b3 {[%emt 0:01:02]} Na5 {[%emt 0:01:36]} 20. Nd4 {[%emt 0:05:03]} Nd5 {[%emt 0:00:34]} 21. Bd2 {[%emt 0:01:16]} Bf6 {[%emt 0:01:29]} 22. Bxa5 {[%emt 0:00:34]} Bxd4 {[%emt 0:00:32]} 23. Ra2 {[%emt 0:00:40]} Bc3 {[%emt 0:00:25]} 24. Bxc3 {[%emt 0:00:41]} Nxc3 {[%emt 0:00:03]} 25. Rd2 {[%emt 0:01:20]} Nxb1 {[%emt 0:00:39]} 26. Rxb1 {[%emt 0:00:05]} Rfd8 {[%emt 0:00:06]} 27. Rbd1 {[%emt 0:00:17]} Kf8 {[%emt 0:00:49]} 28. Rxd6 {[%emt 0:00:18]} Rxd6 {[%emt 0:00:04]} 29. Rxd6 {[%emt 0:00:09]} Ke7 {[%emt 0:00:16]} 30. Rb6 {[%emt 0:00:53]} Rb8 {[%emt 0:00:06]} 31. g4 {[%emt 0:00:29]} a5 {[%emt 0:00:12]} 32. f4 {[%emt 0:01:09]} Kd7 {[%emt 0:00:02]} 33. f6 {[%emt 0:00:37]} g6 {[%emt 0:00:33]} 34. Kf2 {[%emt 0:05:05]} Kc7 {[%emt 0:00:06]} 35. Rb5 {[%emt 0:00:18]} b6 {[%emt 0:00:02]} 36. Re5 {[%emt 0:00:06]} Kd6 {[%emt 0:00:19]} 37. Re7 {[%emt 0:00:11]} Rf8 {[%emt 0:00:02]} 38. Ke3 {[%emt 0:00:18]} Kc5 {[%emt 0:00:06]} 39. Re5+ {[%emt 0:03:14]} Kc6 {[%emt 0:01:19]} 40. Kd4 {[%emt 0:00:00]} Rd8+ {[%emt 0:00:06]} 41. Kc4 {[%emt 0:02:24]} Rf8 {[%emt 0:00:28]} 42. Re7 {[%emt 0:00:24]} h6 {[%emt 0:00:37]} 43. h4 {[%emt 0:00:28]} g5 {[%emt 0:01:24]} 44. fxg5 {[%emt 0:00:25]} hxg5 {[%emt 0:00:03]} 45. h5 {[%emt 0:00:07]} Kd6 {[%emt 0:02:41]} 46. Kb5 {[%emt 0:00:01]} Rb8 {[%emt 0:00:25]} 47. Rxf7 {[%emt 0:00:28]} Ke6 {[%emt 0:00:04]} 48. Rg7 {[%emt 0:00:07]} Kxf6 {[%emt 0:00:04]} 49. Rg6+ {[%emt 0:00:07]} Ke5 {[%emt 0:00:07]} 50. Rxg5+ {[%emt 0:00:07]} 1-0